fUST/lending_fUST_20260117
["ID","MTS","AMOUNT","RATE_DAILY","PERIOD"]
[402206162,1768600238537,-317.60592974,0.0001601,7]
[402206163,1768600238546,-500.0,0.0001601,7]
[402206164,1768600238560,-158.79467282,0.0001601,7]
[402206220,1768600240212,-341.20532718,0.0001601,7]
[402206221,1768600240222,-316.8505769,0.0001601,7]
[402206222,1768600240234,-183.1494231,0.0001601,7]
[402206223,1768600240244,-500.0,0.0001601,7]
[402206224,1768600240254,-500.0,0.0001601,7]
[402206225,1768600240266,-500.0,0.0001601,7]
[402206226,1768600240276,-500.0,0.0001601,7]
[402206227,1768600240286,-500.0,0.0001601,7]
[402206228,1768600240295,-500.0,0.0001601,7]
[402206229,1768600240305,-500.0,0.0001601,7]
[402206230,1768600240314,-500.0,0.0001601,7]
[402206231,1768600240324,-500.0,0.0001601,7]
[402206232,1768600240333,-500.0,0.0001601,7]
[402206233,1768600240343,-500.0,0.0001601,7]
[402206234,1768600240352,-500.0,0.0001601,7]
[402206235,1768600240361,-500.0,0.0001601,7]
[402206236,1768600240371,-500.0,0.0001601,7]
[402206237,1768600240381,-500.0,0.0001601,7]
[402206238,1768600240390,-500.0,0.0001601,7]
[402206239,1768600240399,-500.0,0.0001601,7]
[402206240,1768600240409,-500.0,0.0001601,7]
[402206241,1768600240419,-500.0,0.0001601,7]
[402206242,1768600240428,-500.0,0.0001601,7]
[402206243,1768600240437,-500.0,0.0001601,7]
[402206244,1768600240447,-500.0,0.0001601,7]
[402206246,1768600240455,-340.31264214,0.0001601,7]
[402207141,1768601432071,-500.0,0.00013273,2]
[402207142,1768601432081,-246.49370794,0.00013273,2]
[402207143,1768601432091,-608.0,0.00013273,2]
[402207144,1768601432099,-496.2295947,0.00013679,2]
[402207145,1768601432109,-1000.0,0.00013821,2]
[402207146,1768601432119,-1500.0,0.00014368,2]
[402207148,1768601432128,-3000.0,0.00014818,2]
[402207149,1768601432137,-186.40824943,0.0001489,2]
[402207150,1768601432146,-201.49705324,0.00014916,2]
[402207152,1768601432156,-300.0,0.00014988,2]
[402207154,1768601432165,-1200.0,0.00014988,2]
[402207156,1768601432174,-300.0,0.00014989,2]
[402207158,1768601432183,-500.0,0.00014989,2]
[402207159,1768601432192,-500.0,0.00014989,2]
[402207160,1768601432201,-24698.81668312,0.0001499,2]
[402207161,1768601432211,-10875.97704425,0.0001499,2]
[402207162,1768601432222,-997.14197923,0.0001499,2]
[402207163,1768601432233,-6249.3546455,0.0001499,2]
[402207164,1768601432279,-1326.0,0.0001499,2]
[402207165,1768601432290,-4615.95588697,0.0001499,2]
[402207171,1768601438141,-2278.89239593,0.0001499,2]
[402207177,1768601440360,-1419.53095177,0.0001499,2]
[402207737,1768601446414,-757.077623,0.0001499,2]
[402208044,1768602632334,-1016.72874072,0.0001,2]
[402208046,1768602632343,-560.0,0.0001,2]
[402208048,1768602632352,-3789.85,0.0001369,2]
[402208050,1768602632361,-1000.0,0.00013999,2]
[402208052,1768602632370,-1200.0,0.00014154,2]
[402208054,1768602632380,-209.42547738,0.00014155,2]
[402208057,1768602632389,-300.0,0.00014713,2]
[402208059,1768602632398,-248.5653341,0.00014714,2]
[402208060,1768602632407,-5037.1565758,0.00014715,2]
[402208063,1768602632418,-440.41335325,0.00014715,2]
[402208065,1768602632429,-11346.94498665,0.00014715,2]
[402208067,1768602632439,-603.46133269,0.00014989,2]
[402208069,1768602632449,-2537.19959533,0.0001499,2]
[402208071,1768602632458,-241.0,0.00015,2]
[402208073,1768602632467,-11.6194931,0.00015037,2]
[402208075,1768602632478,-205.75172,0.00015037,2]
[402208077,1768602632487,-1040.10398434,0.0001508,2]
[402208079,1768602632496,-251.03407416,0.0001508,2]
[402208092,1768602632603,-643.77140468,0.0001508,2]
[402208094,1768602632615,-586.56220887,0.0001508,2]
[402208185,1768602638304,-470.8308,0.0001508,2]
[402208186,1768602638316,-7919.62006071,0.0001508,2]
[402208187,1768602638367,-7634.95212254,0.0001508,2]
[402208204,1768602640563,-328.57022792,0.0001508,2]
[402208816,1768603832377,-300.0,0.00012328,2]
[402208817,1768603832388,-117.16503418,0.00012329,2]
[402208818,1768603832399,-126.42899324,0.00012329,2]
[402208819,1768603832409,-167.96540492,0.00012329,2]
[402208820,1768603832421,-1078.08916142,0.00012329,2]
[402208948,1768603838718,-1032.87687364,0.00012329,2]
[402208949,1768603838736,-10914.953604,0.00012329,2]
[402208950,1768603838834,-4500.6005844,0.00012329,2]
[402208951,1768603838849,-2741.69818196,0.00012329,2]
[402208952,1768603838859,-811.85,0.00012329,2]
[402208953,1768603838869,-676.54,0.00012329,2]
[402208954,1768603838878,-563.78,0.00012329,2]
[402208955,1768603838888,-469.82,0.00012329,2]
[402208956,1768603838898,-391.51,0.00012329,2]
[402208957,1768603838907,-326.26,0.00012329,2]
[402208958,1768603838916,-271.89,0.00012329,2]
[402208959,1768603838926,-226.57,0.00012329,2]
[402208960,1768603838936,-188.81,0.00012329,2]
[402208961,1768603838945,-157.34,0.00012329,2]
[402208962,1768603838955,-786.73,0.00012329,2]
[402208963,1768603838964,-594.0,0.00012329,2]
[402208964,1768603838973,-420.0,0.00013529,2]
[402208965,1768603838983,-250.0,0.00013537,2]
[402208966,1768603838992,-253.96580998,0.00013703,2]
[402208967,1768603839002,-1000000.0,0.00013704,2]
[402208968,1768603839011,-153.6375,0.00013804,2]
[402208969,1768603839022,-101752.2254945,0.00013805,2]
[402208970,1768603839032,-287.44095236,0.00014329,2]
[402208971,1768603839042,-3674.23078583,0.0001451,2]
[402208972,1768603839052,-1381.5062352,0.00014792,2]
[402208973,1768603839061,-587.0,0.00014847,2]
[402208974,1768603839071,-1945.15493052,0.00015,2]
[402208975,1768603839081,-2150.738,0.00015164,2]
[402208976,1768603839091,-151.0,0.00015164,2]
[402208977,1768603839100,-151.0,0.00015164,2]
[402208978,1768603839110,-151.0,0.00015164,2]
[402208979,1768603839125,-445.202766,0.00015164,2]
[402208980,1768603839137,-500.0,0.00015399,2]
[402208981,1768603839147,-411.62027308,0.000154,2]
[402208982,1768603839156,-181.72226081,0.000154,2]
[402208983,1768603839167,-166.68524503,0.000154,2]
[402208984,1768603839177,-228.83627671,0.000154,2]
[402208985,1768603839186,-156.1285708,0.000154,2]
[402208986,1768603839198,-230.85702611,0.000154,2]
[402208987,1768603839208,-180.2648404,0.000154,2]
[402208988,1768603839218,-224.7449141,0.000154,2]
[402208989,1768603839227,-1516.0,0.0001549,7]
[402208990,1768603839236,-500.0,0.00015576,2]
[402208991,1768603839248,-500.0,0.00015576,2]
[402208992,1768603839257,-304.9869532,0.000156,2]
[402208993,1768603839267,-304.9869532,0.000156,2]
[402208994,1768603839276,-168.0,0.00015696,2]
[402208995,1768603839286,-2230.315306,0.00015712,2]
[402208996,1768603839295,-461.67526834,0.00015712,2]
[402208997,1768603839304,-168.0,0.00015813,2]
[402208998,1768603839314,-260.0,0.00015941,2]
[402208999,1768603839323,-260.0,0.00015957,2]
[402209000,1768603839332,-260.0,0.00015974,2]
[402209001,1768603839342,-193528.37802012,0.00016,2]
[402209002,1768603839352,-3000.0,0.00016,2]
[402209003,1768603839361,-3000.0,0.0001601,2]
[402209004,1768603839370,-500.0,0.0001601,7]
[402209005,1768603839379,-500.0,0.0001601,7]
[402209006,1768603839388,-500.0,0.0001601,7]
[402209007,1768603839397,-500.0,0.0001601,7]
[402209008,1768603839406,-500.0,0.0001601,7]
[402209009,1768603839415,-500.0,0.0001601,7]
[402209010,1768603839424,-500.0,0.0001601,7]
[402209011,1768603839433,-500.0,0.0001601,7]
[402209012,1768603839443,-500.0,0.0001601,7]
[402209013,1768603839452,-500.0,0.0001601,7]
[402209014,1768603839461,-500.0,0.0001601,7]
[402209015,1768603839470,-500.0,0.0001601,7]
[402209016,1768603839479,-500.0,0.0001601,7]
[402209017,1768603839488,-500.0,0.0001601,7]
[402209018,1768603839498,-500.0,0.0001601,7]
[402209019,1768603839507,-500.0,0.0001601,7]
[402209020,1768603839516,-500.0,0.0001601,7]
[402209021,1768603839525,-500.0,0.0001601,7]
[402209022,1768603839535,-500.0,0.0001601,7]
[402209023,1768603839543,-500.0,0.0001601,7]
[402209024,1768603839554,-500.0,0.0001601,7]
[402209025,1768603839563,-159.69,0.0001601,7]
[402209026,1768603839572,-500.0,0.0001601,7]
[402209027,1768603839581,-500.0,0.0001601,7]
[402209028,1768603839590,-500.0,0.0001601,7]
[402209029,1768603839599,-500.0,0.0001601,7]
[402209030,1768603839608,-500.0,0.0001601,7]
[402209031,1768603839617,-500.0,0.0001601,7]
[402209032,1768603839627,-500.0,0.0001601,7]
[402209033,1768603839636,-500.0,0.0001601,7]
[402209034,1768603839645,-500.0,0.0001601,7]
[402209035,1768603839655,-500.0,0.0001601,7]
[402209036,1768603839664,-500.0,0.0001601,7]
[402209037,1768603839673,-500.0,0.0001601,7]
[402209038,1768603839682,-500.0,0.0001601,7]
[402209039,1768603839691,-500.0,0.0001601,7]
[402209040,1768603839700,-500.0,0.0001601,7]
[402209041,1768603839709,-500.0,0.0001601,7]
[402209042,1768603839718,-500.0,0.0001601,7]
[402209043,1768603839728,-500.0,0.0001601,7]
[402209044,1768603839737,-500.0,0.0001601,7]
[402209045,1768603839746,-500.0,0.0001601,7]
[402209046,1768603839755,-500.0,0.0001601,7]
[402209047,1768603839766,-500.0,0.0001601,7]
[402209048,1768603839774,-500.0,0.0001601,7]
[402209049,1768603839784,-500.0,0.0001601,7]
[402209050,1768603839797,-500.0,0.0001601,7]
[402209051,1768603839810,-500.0,0.0001601,7]
[402209052,1768603839820,-500.0,0.0001601,7]
[402209053,1768603839830,-500.0,0.0001601,7]
[402209054,1768603839841,-500.0,0.0001601,7]
[402209055,1768603839851,-500.0,0.0001601,7]
[402209056,1768603839860,-500.0,0.0001601,7]
[402209057,1768603839870,-500.0,0.0001601,7]
[402209058,1768603839880,-500.0,0.0001601,7]
[402209059,1768603839889,-500.0,0.0001601,7]
[402209060,1768603839899,-500.0,0.0001601,7]
[402209061,1768603839908,-500.0,0.0001601,7]
[402209062,1768603839917,-500.0,0.0001601,7]
[402209063,1768603839926,-500.0,0.0001601,7]
[402209064,1768603839937,-500.0,0.0001601,7]
[402209065,1768603839946,-500.0,0.0001601,7]
[402209066,1768603839956,-500.0,0.0001601,7]
[402209067,1768603839965,-500.0,0.0001601,7]
[402209068,1768603839975,-500.0,0.0001601,7]
[402209069,1768603839984,-500.0,0.0001601,7]
[402209070,1768603839993,-500.0,0.0001601,7]
[402209071,1768603840003,-500.0,0.0001601,7]
[402209073,1768603840012,-500.0,0.0001601,7]
[402209074,1768603840022,-500.0,0.0001601,7]
[402209075,1768603840031,-500.0,0.0001601,7]
[402209076,1768603840041,-3000.0,0.0001602,2]
[402209077,1768603840051,-3000.0,0.0001603,2]
[402209078,1768603840059,-3000.0,0.0001604,2]
[402209079,1768603840069,-3000.0,0.0001605,2]
[402209080,1768603840078,-344.23702287,0.00016059,2]
[402209081,1768603840087,-3000.0,0.0001606,2]
[402209082,1768603840096,-1293.68899773,0.0001607,2]
[402209083,1768603840642,-814.31211694,0.0001607,2]
[402209084,1768603840654,-891.99888533,0.0001607,2]
[402209085,1768603840663,-411.62027308,0.00016077,9]
[402209086,1768603840673,-3000.0,0.0001608,2]
[402209087,1768603840683,-3000.0,0.0001609,2]
[402209088,1768603840693,-3000.0,0.000161,2]
[402209089,1768603840702,-778.0,0.000161,2]
[402209090,1768603840712,-1256.70759619,0.0001611,2]
[402209369,1768603843600,-1743.29240381,0.0001611,2]
[402209372,1768603843804,-260.0,0.00016118,2]
[402209373,1768603843813,-1719.07249619,0.0001612,2]
[402209375,1768603843825,-630.0,0.0001612,2]
[402209466,1768604236930,250.0,0.000152,120]
[402209469,1768604446832,10741.0,0.000154,120]
[402209561,1768605032479,-243.0,0.00012328,2]
[402209562,1768605032488,-300.0,0.00012328,2]
[402209563,1768605032498,-1200.0,0.00012328,2]
[402209564,1768605032507,-251.32572877,0.00012328,2]
[402209565,1768605032517,-469.37,0.00012329,2]
[402209566,1768605032526,-391.14,0.00012329,2]
[402209567,1768605032535,-325.95,0.00012329,2]
[402209569,1768605032757,-271.63,0.00012329,2]
[402209570,1768605032778,-226.36,0.00012329,2]
[402209571,1768605032787,-188.63,0.00012329,2]
[402209572,1768605032797,-157.19,0.00012329,2]
[402209573,1768605032806,-785.98,0.00012329,2]
[402209574,1768605032815,-594.0,0.00012329,2]
[402209575,1768605032824,-321.2,0.00012746,2]
[402209576,1768605032833,-999.0,0.00013107,2]
[402209577,1768605032843,-500.0,0.00013273,2]
[402209578,1768605032852,-500.0,0.00013273,2]
[402209579,1768605032861,-500.0,0.00013273,2]
[402209580,1768605032870,-500.0,0.00013273,2]
[402209581,1768605032879,-500.0,0.00013273,2]
[402209582,1768605032888,-501.85584568,0.00013273,2]
[402209583,1768605032897,-241.59353127,0.00013273,2]
[402209584,1768605032906,-500.0,0.00013273,2]
[402209585,1768605032915,-420.0,0.00013529,2]
[402209586,1768605032924,-1151.0,0.00013561,2]
[402209587,1768605032933,-1000.0,0.00013699,2]
[402209588,1768605032942,-296.56435995,0.00014328,2]
[402209589,1768605032951,-587.0,0.00014847,2]
[402209590,1768605032960,-1809.35522155,0.000149,2]
[402209591,1768605032969,-24609.74192191,0.0001499,2]
[402209592,1768605033082,-5866.52910428,0.0001499,2]
[402209593,1768605033092,-500.0,0.00014999,2]
[402209594,1768605033102,-500.0,0.00014999,2]
[402209595,1768605033111,-500.0,0.00014999,2]
[402209596,1768605033120,-500.0,0.00014999,2]
[402209597,1768605033129,-500.0,0.00014999,2]
[402209598,1768605033139,-500.0,0.00014999,2]
[402209599,1768605033148,-96.36930822,0.00014999,2]
[402209640,1768605038668,-215.84582765,0.00014725,2]
[402209642,1768605038679,-403.63069178,0.00014999,2]
[402209644,1768605038689,-500.0,0.00014999,2]
[402209646,1768605038699,-500.0,0.00014999,2]
[402209648,1768605038708,-500.0,0.00014999,2]
[402209650,1768605038718,-216.89348057,0.00014999,2]
[402209677,1768605040942,-283.10651943,0.00014999,2]
[402209680,1768605040951,-500.0,0.00014999,2]
[402209682,1768605040963,-126.19352866,0.00014999,2]
[402209950,1768605043697,-373.80647134,0.00014999,2]
[402209952,1768605043706,-73.73352866,0.00014999,2]
[402210272,1768605046895,-8511.26358808,0.0001489,2]
[402210389,1768605437294,186.36,7.27e-05,2]
[402210390,1768605437711,248.48,7.829e-05,2]
[402210391,1768605438096,310.6,8.388e-05,2]
[402210392,1768605440676,-222.94507433,8.947e-05,2]
[402210408,1768605513308,157.9,7.265e-05,2]
[402210409,1768605513492,210.53,7.824e-05,2]
[402210410,1768605513752,263.16,8.383e-05,2]
[402210411,1768605514120,-315.79,8.942e-05,2]
[402210415,1768605584228,247.67,6.482e-05,2]
[402210416,1768605584596,371.5,7.022e-05,2]
[402210417,1768605585003,495.34,7.562e-05,2]
[402210418,1768605585379,619.17,8.102e-05,2]
[402210419,1768605585769,743.01,8.643e-05,2]
[402210420,1768605591413,-451.34701316,9.183e-05,2]
[402210421,1768605593403,-301.85311576,9.183e-05,2]
[402210422,1768605605043,-113.63987108,9.183e-05,2]
[402210423,1768605605068,-75.83971235,9.183e-05,2]
[402210424,1768605607803,-359.20701261,9.183e-05,2]
[402210428,1768605660763,194.68,6.732e-05,2]
[402210429,1768605661161,292.02,7.293e-05,2]
[402210430,1768605661553,389.35,7.854e-05,2]
[402210431,1768605661962,486.69,8.415e-05,2]
[402210432,1768605665832,-268.56228605,8.976e-05,2]
[402210433,1768605669244,-294.63023231,8.976e-05,2]
[402210456,1768605738953,159.99,6.731e-05,2]
[402210457,1768605739226,239.98,7.292e-05,2]
[402210460,1768605739746,319.98,7.853e-05,2]
[402210461,1768605740352,399.97,8.414e-05,2]
[402210464,1768605741740,-219.04876977,8.975e-05,2]
[402210465,1768605743782,-168.01099792,8.975e-05,2]
[402210470,1768605749164,-92.91023231,8.975e-05,2]
[402210472,1768605749192,-86.09993677,9.183e-05,2]
[402210504,1768605816070,200.51,7.323e-05,2]
[402210505,1768605816979,267.35,7.886e-05,2]
[402210506,1768605817486,334.18,8.45e-05,2]
[402210516,1768605830019,-256.21177549,9.013e-05,2]
[402210523,1768605892545,190.06,6.919e-05,2]
[402210524,1768605893019,285.08,7.496e-05,2]
[402210525,1768605893497,380.11,8.072e-05,2]
[402210526,1768605893968,475.14,8.649e-05,2]
[402210527,1768605902262,-27.85333827,9.183e-05,2]
[402210528,1768605902286,-266.84155782,9.226e-05,2]
[402210529,1768605903720,-179.17516074,9.226e-05,2]
[402210531,1768605950318,-174.8479986,9e-05,2]
[402210539,1768605952343,-209.25782753,9e-05,2]
[402210542,1768605980478,166.68,6.877e-05,2]
[402210543,1768605981076,250.02,7.45e-05,2]
[402210544,1768605981477,333.36,8.023e-05,2]
[402210545,1768605981958,416.69,8.596e-05,2]
[402210546,1768605995622,-111.45417387,9e-05,2]
[402210547,1768605995649,-224.02851661,9.169e-05,2]
[402210549,1768606058463,209.72,7.34e-05,2]
[402210550,1768606059486,279.63,7.905e-05,2]
[402210551,1768606059978,349.54,8.469e-05,2]
[402210552,1768606070040,-390.05091672,9.034e-05,2]
[402210655,1768606137317,177.69,7.326e-05,2]
[402210658,1768606137791,236.92,7.889e-05,2]
[402210659,1768606138253,296.16,8.453e-05,2]
[402210660,1768606145657,-163.12237002,9.016e-05,2]
[402210661,1768606150299,-160.87,9.016e-05,2]
[402210662,1768606206227,-31.39762998,9.016e-05,2]
[402210663,1768606206252,-268.60237002,9.016e-05,2]
[402210664,1768606213224,199.14,7.896e-05,2]
[402210665,1768606213697,248.93,8.46e-05,2]
[402210666,1768606215973,-277.39762998,9.016e-05,2]
[402210667,1768606216000,-22.60237002,9.024e-05,2]
[402210668,1768606221457,-204.52372453,9.024e-05,2]
[402210698,1768606231693,-71.58390545,9.024e-05,2]
[402210700,1768606231702,-284.00266651,9.361e-05,2]
[402210702,1768606231713,-348.5,9.588e-05,2]
[402210704,1768606231722,-398.28,0.00010152,2]
[402210707,1768606231733,-448.07,0.00010716,2]
[402210709,1768606231742,-2000.0,0.00010897,2]
[402210711,1768606231751,-2000.0,0.00010906,2]
[402210713,1768606231761,-2000.0,0.00010915,2]
[402210715,1768606231770,-2000.0,0.00010924,2]
[402210717,1768606231780,-2000.0,0.00010933,2]
[402210719,1768606231790,-662.4195537,0.0001094,2]
[402210721,1768606231802,-537.5804463,0.0001094,2]
[402210723,1768606231811,-379.72521493,0.00010941,2]
[402210727,1768606231835,-629.30076944,0.00010941,2]
[402210729,1768606231847,-709.4838733,0.00010941,2]
[402210766,1768606237900,-281.49014233,0.00010941,2]
[402210768,1768606237910,-300.0,0.00010949,2]
[402210770,1768606237921,-300.0,0.00010949,2]
[402210772,1768606237932,-2000.0,0.0001095,2]
[402210773,1768606237942,-1643.84819527,0.00010959,2]
[402210775,1768606237951,-1510.25752739,0.00010959,2]
[402210776,1768606237961,-1861.0,0.00010959,2]
[402210777,1768606237971,-2000.0,0.00010959,2]
[402210778,1768606237980,-250.0,0.00011266,2]
[402210779,1768606237990,-497.85,0.0001128,2]
[402210780,1768606237999,-335.12314648,0.00011361,2]
[402210781,1768606238008,-420.0,0.00012032,2]
[402210782,1768606238017,-1680.0,0.00012034,2]
[402210783,1768606238027,-455.45,0.00012329,2]
[402210784,1768606238036,-379.54,0.00012329,2]
[402210785,1768606238046,-316.28,0.00012329,2]
[402210786,1768606238055,-263.57,0.00012329,2]
[402210787,1768606238064,-219.64,0.00012329,2]
[402210788,1768606238074,-183.03,0.00012329,2]
[402210789,1768606238095,-152.53,0.00012329,2]
[402210790,1768606238104,-762.67,0.00012329,2]
[402210791,1768606238114,-587.0,0.00013223,2]
[402210792,1768606238123,-2351.0,0.00013238,2]
[402210793,1768606238133,-509.62334033,0.00013273,2]
[402210794,1768606238143,-502.83955258,0.00013273,2]
[402210795,1768606238152,-500.0,0.00013273,2]
[402210796,1768606238162,-500.0,0.00013273,2]
[402210797,1768606238171,-500.0,0.00013273,2]
[402210798,1768606238181,-453.71259255,0.00013273,2]
[402210799,1768606238192,-500.0,0.00013273,2]
[402210800,1768606238202,-500.0,0.00013273,2]
[402210801,1768606238212,-505.85156425,0.00013273,2]
[402210802,1768606238221,-500.0,0.00013273,2]
[402210803,1768606238231,-500.0,0.00013273,2]
[402210804,1768606238241,-500.47248142,0.00013273,2]
[402210805,1768606238251,-386.24362645,0.00013362,2]
[402210806,1768606238260,-2092.36232904,0.00013554,5]
[402210807,1768606238270,-300.0,0.00013673,2]
[402210808,1768606238279,-500.0,0.00013699,2]
[402210809,1768606238288,-500.0,0.00013699,2]
[402210810,1768606238298,-310.63775509,0.00013699,2]
[402210811,1768606238308,-431.73453214,0.00013699,2]
[402210812,1768606238317,-194.1362209,0.00013699,2]
[402210813,1768606238327,-500.0,0.00013699,2]
[402210814,1768606238337,-505.35037186,0.00013699,2]
[402210815,1768606238347,-500.0,0.00013699,2]
[402210816,1768606238357,-500.0,0.00013699,2]
[402210817,1768606238372,-502.90945713,0.00013699,2]
[402210818,1768606238383,-500.0,0.00013699,2]
[402210819,1768606238395,-500.0,0.00013699,2]
[402210820,1768606238406,-250.52997418,0.00013699,2]
[402210821,1768606238416,-500.0,0.00013699,2]
[402210822,1768606238427,-500.0,0.00013699,2]
[402210823,1768606238438,-500.0,0.00013699,2]
[402210824,1768606238448,-500.0,0.00013699,2]
[402210825,1768606238458,-500.43334725,0.00013699,2]
[402210826,1768606238469,-151.88,0.00013703,2]
[402210827,1768606238479,-1000.85139614,0.00013821,2]
[402210828,1768606238488,-1000.0,0.00013821,2]
[402210829,1768606238498,-1000.0,0.00013821,2]
[402210830,1768606238508,-1000.0,0.00013821,2]
[402210831,1768606238518,-504.15629489,0.00013821,2]
[402210832,1768606238528,-500.0,0.00013821,2]
[402210833,1768606238538,-2029.37622556,0.00013899,2]
[402210834,1768606238548,-500.0,0.00013971,2]
[402210835,1768606238558,-500.0,0.00013971,2]
[402210836,1768606238568,-500.0,0.00013971,2]
[402210837,1768606238578,-500.0,0.00013971,2]
[402210838,1768606238588,-500.0,0.00013971,2]
[402210839,1768606238598,-500.0,0.00013971,2]
[402210840,1768606238608,-500.0,0.00013971,2]
[402210841,1768606238618,-500.0,0.00013971,2]
[402210842,1768606238628,-500.0,0.00013971,2]
[402210843,1768606238637,-500.0,0.00013971,2]
[402210844,1768606238647,-500.0,0.00013971,2]
[402210845,1768606238657,-500.0,0.00013971,2]
[402210846,1768606238666,-500.0,0.00013971,2]
[402210847,1768606238676,-500.0,0.00013971,2]
[402210848,1768606238686,-500.0,0.00013971,2]
[402210849,1768606238695,-500.0,0.00013971,2]
[402210850,1768606238705,-583.66666658,0.00013971,2]
[402210851,1768606238715,-500.0,0.00013971,2]
[402210852,1768606238724,-500.0,0.00013971,2]
[402210853,1768606238734,-500.0,0.00013971,2]
[402210854,1768606238743,-500.0,0.00013971,2]
[402210855,1768606238753,-489.95055912,0.00013971,2]
[402210856,1768606238763,-500.0,0.00013971,2]
[402210857,1768606238773,-500.0,0.00013971,2]
[402210858,1768606238783,-500.0,0.00013971,2]
[402210859,1768606238792,-500.0,0.00013971,2]
[402210860,1768606238802,-500.0,0.00013971,2]
[402210861,1768606238813,-500.0,0.00013971,2]
[402210862,1768606238822,-500.0,0.00013971,2]
[402210863,1768606238833,-500.0,0.00013971,2]
[402210864,1768606238844,-500.0,0.00013971,2]
[402210865,1768606238855,-500.0,0.00013971,2]
[402210866,1768606238865,-500.0,0.00013971,2]
[402210867,1768606238880,-500.0,0.00013971,2]
[402210868,1768606238893,-266.25453486,0.00013971,2]
[402210869,1768606238904,-500.0,0.00013971,2]
[402210870,1768606238914,-500.0,0.00013971,2]
[402210871,1768606238924,-500.0,0.00013971,2]
[402210872,1768606238935,-500.0,0.00013971,2]
[402210873,1768606238945,-500.0,0.00013971,2]
[402210874,1768606238955,-500.0,0.00013971,2]
[402210875,1768606238968,-500.0,0.00013971,2]
[402210876,1768606238978,-500.0,0.00013971,2]
[402210877,1768606238988,-500.0,0.00013971,2]
[402210878,1768606238998,-500.0,0.00013971,2]
[402210879,1768606239007,-500.0,0.00013971,2]
[402210880,1768606239017,-500.0,0.00013971,2]
[402210881,1768606239028,-500.0,0.00013971,2]
[402210882,1768606239037,-500.0,0.00013971,2]
[402210883,1768606239047,-500.0,0.00013971,2]
[402210884,1768606239056,-500.0,0.00013971,2]
[402210885,1768606239066,-500.0,0.00013971,2]
[402210886,1768606239076,-500.0,0.00013971,2]
[402210887,1768606239085,-500.0,0.00013971,2]
[402210888,1768606239095,-500.0,0.00013971,2]
[402210889,1768606239105,-500.0,0.00013971,2]
[402210890,1768606239115,-500.0,0.00013971,2]
[402210891,1768606239124,-500.0,0.00013971,2]
[402210892,1768606239135,-500.0,0.00013971,2]
[402210893,1768606239145,-500.0,0.00013971,2]
[402210894,1768606239155,-500.0,0.00013971,2]
[402210895,1768606239164,-500.0,0.00013971,2]
[402210896,1768606239175,-500.0,0.00013971,2]
[402210897,1768606239184,-500.0,0.00013971,2]
[402210898,1768606239194,-500.0,0.00013971,2]
[402210899,1768606239206,-500.0,0.00013971,2]
[402210900,1768606239216,-500.0,0.00013971,2]
[402210901,1768606239229,-500.0,0.00013971,2]
[402210902,1768606239239,-500.0,0.00013971,2]
[402210903,1768606239249,-500.0,0.00013971,2]
[402210904,1768606239259,-465.03928211,0.00013971,2]
[402210905,1768606239270,-500.0,0.00013971,2]
[402210906,1768606239282,-500.0,0.00013971,2]
[402210908,1768606239292,-500.0,0.00013971,2]
[402210909,1768606239302,-500.0,0.00013971,2]